Workbook

Sheet 收入支出决算总表
A2: 收入支出决算总表
D3: 公开01表
A4: 公开部门：重庆市江津区国有资产监督管理委员会 | D4: 单位：万元
A5: 收入 | C5: 支出
A6: 项目 | B6: 决算数 | C6: 功能分类科目 | D6: 决算数
A7: 一、一般公共预算财政拨款收入 | B7: =38315.58+460.67 -> 38776.25 | C7: 一、教育支出 | D7: =1.23+2.3 -> 3.53
A8: 二、政府性基金预算财政拨款收入 | B8: 12400.00 | C8: 二、社会保障和就业支出 | D8: =148.32+54.16 -> 202.48
A9: 三、国有资本经营预算财政拨款收入 | C9: 三、卫生健康支出 | D9: =11.63+19.82 -> 31.45
A10: 四、上级补助收入 | C10: 四、城乡社区支出 | D10: 69395.00
A11: 五、事业收入 | C11: 五、资源勘探工业信息等支出 | D11: =3138.23+361.57 -> 3499.80
A12: 六、经营收入 | C12: 六、住房保障支出 | D12: =16.17+22.82 -> 38.99
A13: 七、附属单位上缴收入
A14: 八、其他收入
A18: 本年收入合计 | B18: =SUM(B7:B14) -> 51176.25 | C18: 本年支出合计 | D18: =SUM(D7:D12) -> 73171.25
A19: 使用非财政拨款结余和专用结余 | C19: 结余分配
A20: 年初结转和结余 | B20: 21995.00 | C20: 年末结转和结余
A21: 总计 | B21: =B18+B20 -> 73171.25 | C21: 总计 | D21: =D18 -> 73171.25
A22: 备注：本表反映部门本年度的总收支和年末结转结余等情况。

Sheet 收入决算表
A1: 收入决算表
J2: 公开02表
A3: 公开部门：重庆市江津区国有资产监督管理委员会 | J3: 单位：万元
A4: 项目 | C4: 本年收入合计 | D4: 财政拨款收入 | E4: 上级补助收入 | F4: 事业收入 | H4: 经营收入 | I4: 附属单位上缴收入 | J4: 其他收入
A5: 功能分类科目编码 | B5: 项目(按“项”级功能分类科目) | J5: 小计
F6: 小计 | G6: 其中：教育收费
A8: 合计 | C8: =D8 -> 51176.25 | D8: =D9+D12+D19+D24+D33+D38 -> 51176.25
A9: 205 | B9: 教育支出 | C9: =D9 -> 3.53 | D9: =1.23+2.3 -> 3.53
A10: 20508 | B10: 进修及培训 | C10: 3.53 | D10: =1.23+2.3 -> 3.53
A11: 2050803 | B11: 培训支出 | C11: 3.53 | D11: =1.23+2.3 -> 3.53
A12: 208 | B12: 社会保障和就业支出 | C12: 202.48 | D12: =D13+D17 -> 202.48
A13: 20805 | B13: 行政事业单位养老支出 | C13: 85.38 | D13: =SUM(D14:D16) -> 85.38
A14: 2080505 | B14: 机关事业单位基本养老保险缴费支出 | C14: 54.99 | D14: =20.04+34.95 -> 54.99
A15: 2080506 | B15: 机关事业单位职业年金缴费支出 | C15: 27.50 | D15: =10.03+17.47 -> 27.50
A16: 2080599 | B16: 其他行政事业单位养老支出 | C16: 2.89 | D16: 2.89
A17: 20899 | B17: 其他社会保障和就业支出 | C17: 117.10 | D17: =115.36+1.74 -> 117.10
A18: 2089999 | B18: 其他社会保障和就业支出 | C18: 117.10 | D18: =115.36+1.74 -> 117.10
A19: 210 | B19: 卫生健康支出 | C19: 31.45 | D19: =11.63+19.82 -> 31.45
A20: 21011 | B20: 行政事业单位医疗 | C20: 31.45 | D20: =SUM(D21:D23) -> 31.45
A21: 2101101 | B21: 行政单位医疗 | C21: 22.79 | D21: =8.51+14.28 -> 22.79
A22: 2101103 | B22: 公务员医疗补助 | C22: 8.31 | D22: =2.77+5.54 -> 8.31
A23: 2101199 | B23: 其他行政事业单位医疗支出 | C23: 0.35 | D23: 0.35
A24: 212 | B24: 城乡社区支出 | C24: 47400.00 | D24: =D25+D27+D30 -> 47400.00
A25: 21203 | B25: 城乡社区公共设施 | C25: 35000.00 | D25: 35000.00
A26: 2120399 | B26: 其他城乡社区公共设施支出 | C26: 35000.00 | D26: 35000.00
A27: 21208 | B27: 国有土地使用权出让收入安排的支出 | C27: 5550.00 | D27: =SUM(D28:D29) -> 5550.00
A28: 2120801 | B28: 征地和拆迁补偿支出 | C28: 4550.00 | D28: 4550.00
A29: 2120802 | B29: 土地开发支出 | C29: 1000.00 | D29: 1000.00
A30: 21210 | B30: 国有土地收益基金安排的支出 | C30: 6850.00 | D30: =SUM(D31:D32) -> 6850.00
A31: 2121001 | B31: 征地和拆迁补偿支出 | C31: 4150.00 | D31: 4150.00
A32: 2121002 | B32: 土地开发支出 | C32: 2700.00 | D32: 2700.00
A33: 215 | B33: 资源勘探工业信息等支出 | C33: 3499.80 | D33: =3138.23+361.57 -> 3499.80
A34: 21507 | B34: 国有资产监管 | C34: 3499.80 | D34: =SUM(D35:D37) -> 3499.80
A35: 2150701 | B35: 行政运行 | C35: 556.87 | D35: =195.3+361.57 -> 556.87
A36: 2150702 | B36: 一般行政管理事务 | C36: 36.93 | D36: 36.93
A37: 2150799 | B37: 其他国有资产监管支出 | C37: 2906.00 | D37: 2906.00
A38: 221 | B38: 住房保障支出 | C38: 38.99 | D38: =16.17+22.82 -> 38.99
A39: 22102 | B39: 住房改革支出 | C39: 38.99 | D39: =16.17+22.82 -> 38.99
A40: 2210201 | B40: 住房公积金 | C40: 38.99 | D40: =16.17+22.82 -> 38.99
A41: 备注：本表反映部门本年度取得的各项收入情况。

Sheet 支出决算表
A1: 支出决算表
H2: 公开03表
A3: 公开部门：重庆市江津区国有资产监督管理委员会 | H3: 单位：万元
A4: 项目 | C4: 本年支出合计 | D4: 基本支出 | E4: 项目支出 | F4: 上缴上级支出 | G4: 经营支出 | H4: 对附属单位补助支出
A5: 功能分类科目编码 | B5: 项目(按“项”级功能分类科目)
A8: 合计 | C8: =D8+E8 -> 73171.25 | D8: =D9+D12+D19+D33+D38 -> 716.22 | E8: =E12+E24+E33 -> 72455.03
A9: 205 | B9: 教育支出 | C9: =D9+E9 -> 3.53 | D9: =1.23+2.3 -> 3.53
A10: 20508 | B10: 进修及培训 | C10: 3.53 | D10: =1.23+2.3 -> 3.53
A11: 2050803 | B11: 培训支出 | C11: 3.53 | D11: =1.23+2.3 -> 3.53
A12: 208 | B12: 社会保障和就业支出 | C12: 202.48 | D12: =32.96+52.42 -> 85.38 | E12: =115.36+1.74 -> 117.10
A13: 20805 | B13: 行政事业单位养老支出 | C13: 85.38 | D13: =SUM(D14:D16) -> 85.38
A14: 2080505 | B14: 机关事业单位基本养老保险缴费支出 | C14: 54.99 | D14: =20.04+34.95 -> 54.99
A15: 2080506 | B15: 机关事业单位职业年金缴费支出 | C15: 27.50 | D15: =10.03+17.47 -> 27.50
A16: 2080599 | B16: 其他行政事业单位养老支出 | C16: 2.89 | D16: 2.89
A17: 20899 | B17: 其他社会保障和就业支出 | C17: 117.10 | E17: =115.36+1.74 -> 117.10
A18: 2089999 | B18: 其他社会保障和就业支出 | C18: 117.10 | E18: =115.36+1.74 -> 117.10
A19: 210 | B19: 卫生健康支出 | C19: 31.45 | D19: =11.63+19.82 -> 31.45
A20: 21011 | B20: 行政事业单位医疗 | C20: 31.45 | D20: =SUM(D21:D23) -> 31.45
A21: 2101101 | B21: 行政单位医疗 | C21: 22.79 | D21: =8.51+14.28 -> 22.79
A22: 2101103 | B22: 公务员医疗补助 | C22: 8.31 | D22: =2.77+5.54 -> 8.31
A23: 2101199 | B23: 其他行政事业单位医疗支出 | C23: 0.35 | D23: 0.35
A24: 212 | B24: 城乡社区支出 | C24: 69395.00 | E24: =E25+E27+E30 -> 69395.00
A25: 21203 | B25: 城乡社区公共设施 | C25: 56995.00 | E25: 56995.00
A26: 2120399 | B26: 其他城乡社区公共设施支出 | C26: 56995.00 | E26: 56995.00
A27: 21208 | B27: 国有土地使用权出让收入安排的支出 | C27: 5550.00 | E27: =SUM(E28:E29) -> 5550.00
A28: 2120801 | B28: 征地和拆迁补偿支出 | C28: 4550.00 | E28: 4550.00
A29: 2120802 | B29: 土地开发支出 | C29: 1000.00 | E29: 1000.00
A30: 21210 | B30: 国有土地收益基金安排的支出 | C30: 6850.00 | E30: =SUM(E31:E32) -> 6850.00
A31: 2121001 | B31: 征地和拆迁补偿支出 | C31: 4150.00 | E31: 4150.00
A32: 2121002 | B32: 土地开发支出 | C32: 2700.00 | E32: 2700.00
A33: 215 | B33: 资源勘探工业信息等支出 | C33: 3499.80 | D33: =195.3+361.57 -> 556.87 | E33: 2942.93
A34: 21507 | B34: 国有资产监管 | C34: 3499.80 | D34: =195.3+361.57 -> 556.87 | E34: =E36+E37 -> 2942.93
A35: 2150701 | B35: 行政运行 | C35: 556.87 | D35: =195.3+361.57 -> 556.87
A36: 2150702 | B36: 一般行政管理事务 | C36: 36.93 | E36: 36.93
A37: 2150799 | B37: 其他国有资产监管支出 | C37: 2906.00 | E37: 2906.00
A38: 221 | B38: 住房保障支出 | C38: 38.99 | D38: =16.17+22.82 -> 38.99
A39: 22102 | B39: 住房改革支出 | C39: 38.99 | D39: =16.17+22.82 -> 38.99
A40: 2210201 | B40: 住房公积金 | C40: 38.99 | D40: =16.17+22.82 -> 38.99
A41: 备注：本表反映部门本年度各项支出情况。

Sheet 财政拨款收入支出决算总表
A1: 财政拨款收入支出决算总表
G2: 公开04表
A3: 公开部门：重庆市江津区国有资产监督管理委员会 | G3: 单位：万元
A4: 收 入 | C4: 支 出
A5: 项 目 | B5: 决算数 | C5: 功能分类科目 | D5: 决算数
D6: 小计 | E6: 一般公共预算财政拨款 | F6: 政府性基金预算财政拨款 | G6: 国有资本经营预算财政拨款
A7: 一、一般公共预算财政拨款 | B7: =38315.58+460.67 -> 38776.25 | C7: 一、教育支出 | D7: =SUM(E7:G7) -> 3.53 | E7: =1.23+2.3 -> 3.53
A8: 二、政府性基金预算财政拨款 | B8: 12400.00 | C8: 二、社会保障和就业支出 | D8: 202.48 | E8: =148.32+54.16 -> 202.48
A9: 三、国有资本经营预算财政拨款 | C9: 三、卫生健康支出 | D9: 31.45 | E9: =11.63+19.82 -> 31.45
C10: 四、城乡社区支出 | D10: 69395.00 | E10: 56995.00 | F10: 12400.00
C11: 五、资源勘探工业信息等支出 | D11: 3499.80 | E11: =3138.23+361.57 -> 3499.80
C12: 六、住房保障支出 | D12: 38.99 | E12: =16.17+22.82 -> 38.99
A16: 本年收入合计 | B16: =SUM(B7:B9) -> 51176.25
A17: 年初财政拨款结转和结余 | B17: 21995.00
A18: 一般公共预算财政拨款 | B18: 21995.00 | C18: 本年支出合计 | D18: =E18+F18 -> 73171.25 | E18: =SUM(E7:E12) -> 60771.25 | F18: =SUM(F7:F12) -> 12400.00
A19: 政府性基金预算财政拨款 | C19: 年末财政拨款结转和结余
A20: 国有资本经营预算财政拨款
A21: 总计 | B21: =B16+B17 -> 73171.25 | C21: 总计 | D21: =D18 -> 73171.25 | E21: =E18 -> 60771.25 | F21: =F18 -> 12400.00
A22: 备注：本表反映部门本年度一般公共预算财政拨款、政府性基金预算财政拨款及国有资本经营预算财政拨款的总收支和年末结转结余情况。

Sheet 一般公共预算财政拨款支出决算表
A1: 一般公共预算财政拨款支出决算表
E2: 公开05表
A3: 公开部门：重庆市江津区国有资产监督管理委员会 | E3: 单位：万元
A4: 功能分类科目编码 | B4: 项目(按“项”级功能分类科目) | C4: 决算数
C5: 合计 | D5: 基本支出 | E5: 项目支出
A6: 合 计 | C6: =D6+E6 -> 60,771.25 | D6: =D7+D10+D17+D25+D30 -> 716.22 | E6: =E10+E22+E25 -> 60,055.03
A7: 205 | B7: 教育支出 | C7: =D7+E7 -> 3.53 | D7: =1.23+2.3 -> 3.53
A8: 20508 | B8: 进修及培训 | C8: 3.53 | D8: =1.23+2.3 -> 3.53
A9: 2050803 | B9: 培训支出 | C9: 3.53 | D9: =1.23+2.3 -> 3.53
A10: 208 | B10: 社会保障和就业支出 | C10: 202.48 | D10: =32.96+52.42 -> 85.38 | E10: =115.36+1.74 -> 117.10
A11: 20805 | B11: 行政事业单位养老支出 | C11: 85.38 | D11: =SUM(D12:D14) -> 85.38
A12: 2080505 | B12: 机关事业单位基本养老保险缴费支出 | C12: 54.99 | D12: =20.04+34.95 -> 54.99
A13: 2080506 | B13: 机关事业单位职业年金缴费支出 | C13: 27.50 | D13: =10.03+17.47 -> 27.50
A14: 2080599 | B14: 其他行政事业单位养老支出 | C14: 2.89 | D14: 2.89
A15: 20899 | B15: 其他社会保障和就业支出 | C15: 117.10 | E15: =115.36+1.74 -> 117.10
A16: 2089999 | B16: 其他社会保障和就业支出 | C16: 117.10 | E16: =115.36+1.74 -> 117.10
A17: 210 | B17: 卫生健康支出 | C17: 31.45 | D17: =11.63+19.82 -> 31.45
A18: 21011 | B18: 行政事业单位医疗 | C18: 31.45 | D18: =SUM(D19:D21) -> 31.45
A19: 2101101 | B19: 行政单位医疗 | C19: 22.79 | D19: =8.51+14.28 -> 22.79
A20: 2101103 | B20: 公务员医疗补助 | C20: 8.31 | D20: =2.77+5.54 -> 8.31
A21: 2101199 | B21: 其他行政事业单位医疗支出 | C21: 0.35 | D21: 0.35
A22: 212 | B22: 城乡社区支出 | C22: 56,995.00 | E22: 56,995.00
A23: 21203 | B23: 城乡社区公共设施 | C23: 56,995.00 | E23: 56,995.00
A24: 2120399 | B24: 其他城乡社区公共设施支出 | C24: 56,995.00 | E24: 56,995.00
A25: 215 | B25: 资源勘探工业信息等支出 | C25: 3,499.80 | D25: =195.3+361.57 -> 556.87 | E25: 2,942.93
A26: 21507 | B26: 国有资产监管 | C26: 3,499.80 | D26: =195.3+361.57 -> 556.87 | E26: =E28+E29 -> 2,942.93
A27: 2150701 | B27: 行政运行 | C27: 556.87 | D27: =195.3+361.57 -> 556.87
A28: 2150702 | B28: 一般行政管理事务 | C28: 36.93 | E28: 36.93
A29: 2150799 | B29: 其他国有资产监管支出 | C29: 2,906.00 | E29: 2,906.00
A30: 221 | B30: 住房保障支出 | C30: 38.99 | D30: =16.17+22.82 -> 38.99
A31: 22102 | B31: 住房改革支出 | C31: 38.99 | D31: =16.17+22.82 -> 38.99
A32: 2210201 | B32: 住房公积金 | C32: 38.99 | D32: =16.17+22.82 -> 38.99
A33: 备注：本表反映部门本年度一般公共预算财政拨款支出情况。

Sheet 一般公共预算财政拨款基本支出决算表
A1: 一般公共预算财政拨款基本支出决算表
I2: 公开06表
A3: 公开部门：重庆市江津区国有资产监督管理委员会 | I3: 单位：万元
A4: 人员经费 | D4: 公用经费
A5: 经济分类科目编码 | B5: 经济分类科目（按“款”级经济分类科目） | C5: 金额 | D5: 经济分类科目编码 | E5: 经济分类科目（按“款”级经济分类科目） | F5: 金额 | G5: 经济分类科目编码 | H5: 经济分类科目（按“款”级经济分类科目） | I5: 金额
A7: 301 | B7: 工资福利支出 | C7: =SUM(C8:C16) -> 583.28 | D7: 302 | E7: 商品和服务支出 | F7: =SUM(F8:F19) -> 126.42
A8: 30101 | B8: 基本工资 | C8: =48.47+80.48 -> 128.95 | D8: 30201 | E8: 办公费 | F8: =1.82+1.92 -> 3.74
A9: 30102 | B9: 津贴补贴 | C9: =32.34+60.06 -> 92.40 | D9: 30207 | E9: 邮电费 | F9: =2.91+5.64 -> 8.55
A10: 30103 | B10: 奖金 | C10: =72.58+132.52 -> 205.10 | D10: 30209 | E10: 物业管理费 | F10: =2.16 -> 2.16
A11: 30108 | B11: 机关事业单位基本养老保险缴费 | C11: =20.04+34.95 -> 54.99 | D11: 30211 | E11: 差旅费 | F11: =2.22+10.01 -> 12.23
A12: 30109 | B12: 职业年金缴费 | C12: =10.03+17.47 -> 27.50 | D12: 30213 | E12: 维修（护）费 | F12: =0.68+1 -> 1.68
A13: 30110 | B13: 职工基本医疗保险缴费 | C13: =7.23+12.14 -> 19.37 | D13: 32016 | E13: 培训费 | F13: =1.23+2.3 -> 3.53
A14: 30111 | B14: 公务员医疗补助缴费 | C14: =2.77+5.54 -> 8.31 | D14: 30217 | E14: 公务接待费 | F14: 0.13
A15: 30112 | B15: 其他社会保障缴费 | C15: =2.09+5.58 -> 7.67 | D15: 30226 | E15: 劳务费 | F15: 5.20
A16: 30113 | B16: 住房公积金 | C16: =16.17+22.82 -> 38.99 | D16: 30228 | E16: 工会经费 | F16: =4.73+20.49 -> 25.22
A17: 303 | B17: 对个人和家庭的补助 | C17: =SUM(C18:C19) -> 6.52 | D17: 30229 | E17: 福利费 | F17: =2.46+4.61 -> 7.07
A18: 30305 | B18: 生活补助 | C18: =2.66+3.51 -> 6.17 | D18: 30239 | E18: 其他交通费用 | F18: =9.07+16.24 -> 25.31
A19: 30307 | B19: 医疗费补助 | C19: 0.35 | D19: 30299 | E19: 其他商品和服务支出 | F19: =9.95+21.65 -> 31.60
A20: 人员经费合计 | C20: =C7+C17 -> 589.80 | D20: 公用经费合计 | I20: =42.56+83.86 -> 126.42
A21: 备注：本表反映部门本年度一般公共预算财政拨款基本支出明细情况。

Sheet 政府性基金预算财政拨款收入支出决算表
A1: 政府性基金预算财政拨款收入支出决算表
H2: 公开07表
A3: 公开部门：重庆市江津区国有资产监督管理委员会 | H3: 单位：万元
A4: 功能分类科目编码 | B4: 项目(按“项”级功能分类科目) | C4: 年初结转和结余 | D4: 本年收入 | E4: 本年支出 | H4: 年末结转和结余
E5: 合计 | F5: 基本支出 | G5: 项目支出
A6: 合计 | D6: 12400.00 | E6: =SUM(F6:G6) -> 12400.00 | G6: 12400.00
A7: 212 | B7: 城乡社区支出 | D7: 12400.00 | E7: =SUM(F7:G7) -> 12400.00 | G7: =G8+G11 -> 12400.00
A8: 21208 | B8: 国有土地使用权出让收入安排的支出 | D8: 5550.00 | E8: 5550.00 | G8: =SUM(G9:G10) -> 5550.00
A9: 2120801 | B9: 征地和拆迁补偿支出 | D9: 4550.00 | E9: 4550.00 | G9: 4550.00
A10: 2120802 | B10: 土地开发支出 | D10: 1000.00 | E10: 1000.00 | G10: 1000.00
A11: 21210 | B11: 国有土地收益基金安排的支出 | D11: 6850.00 | E11: 6850.00 | G11: =SUM(G12:G13) -> 6850.00
A12: 2121001 | B12: 征地和拆迁补偿支出 | D12: 4150.00 | E12: 4150.00 | G12: 4150.00
A13: 2121002 | B13: 土地开发支出 | D13: 2700.00 | E13: 2700.00 | G13: 2700.00
A14: 备注：本表反映部门本年度政府性基金预算财政拨款收入支出及结转结余情况。

Sheet 国有资本经营预算财政拨款支出决算表
A1: 国有资本经营预算财政拨款支出决算表
A2: 公开08表
A3: 公开部门：重庆市江津区国有资产监督管理委员会 | G3: 单位：万元
A4: 项目 | E4: 本年支出
A5: 功能分类科目编码 | D5: 科目名称 | E5: 合计 | F5: 基本支出 | G5: 项目支出
A8: 合计
A10: 备注：本表反映部门本年度国有资本经营预算财政拨款支出情况。
A11: 说明：本单位无国有资本经营预算财政拨款支出，故本表为空。

Sheet 机构运行信息表
A1: 机构运行信息表
E2: 公开09表
A3: 公开部门：重庆市江津区国有资产监督管理委员会 | E3: 单位：万元
A4: 项 目 | B4: 预算数 | C4: 决算数 | D4: 项 目 | E4: 决算数
A5: 一、“三公”经费支出 | B5: — | C5: — | D5: 四、机关运行经费 | E5: =42.56+83.86 -> 126.42
A6: （一）支出合计 | B6: 2.00 | C6: 0.13 | D6: （一）行政单位 | E6: 42.56
A7: 1．因公出国（境）费 | D7: （二）参照公务员法管理事业单位 | E7: 83.86
A8: 2．公务用车购置及运行维护费 | D8: 五、资产信息 | E8: —
A9: （1）公务用车购置费 | D9: （一）车辆数合计（辆）
A10: （2）公务用车运行维护费 | D10: 1.副部（省）级及以上领导用车
A11: 3．公务接待费 | B11: 2.00 | C11: 0.13 | D11: 2.主要领导干部用车
A12: （1）国内接待费 | B12: — | C12: 0.13 | D12: 3.机要通信用车
A13: 其中：外事接待费 | B13: — | D13: 4.应急保障用车
A14: （2）国（境）外接待费 | B14: — | D14: 5.执法执勤用车
A15: （二）相关统计数 | B15: — | C15: — | D15: 6.特种专业技术用车
A16: 1．因公出国（境）团组数（个） | B16: — | D16: 7.离退休干部用车
A17: 2．因公出国（境）人次数（人） | B17: — | D17: 8.其他用车
A18: 3．公务用车购置数（辆） | B18: — | D18: （二）单价100万元（含）以上设备（不含车辆）
A19: 4．公务用车保有量（辆） | B19: — | D19: 六、政府采购支出信息 | E19: —
A20: 5．国内公务接待批次（个） | B20: — | C20: 1 | D20: （一）政府采购支出合计
A21: 其中：外事接待批次（个） | B21: — | D21: 1．政府采购货物支出
A22: 6．国内公务接待人次（人） | B22: — | C22: 11 | D22: 2．政府采购工程支出
A23: 其中：外事接待人次（人） | B23: — | D23: 3．政府采购服务支出
A24: 7．国（境）外公务接待批次（个） | B24: — | D24: （二）政府采购授予中小企业合同金额
A25: 8．国（境）外公务接待人次（人） | B25: — | D25: 其中：授予小微企业合同金额
A26: 二、会议费 | B26: — | C26: 1.00
A27: 三、培训费 | B27: — | C27: =1.23+2.3 -> 3.53
A28: 备注：本表反映部门本年度财政拨款“三公”经费支出预决算情况。其中，预算数为“三公”经费全年预算数，反映按规定程序调整后的预算数；决算数为包括本年度财政拨款和以前年度结转资金安排的实际支出。
